bitfinex/quotes_BTCUSD_20240929
["timestamp","ask_amount","ask_price","bid_price","bid_amount"]
[1727587351250,0.097154,65889.0,65888.0,0.005]
[1727587351476,0.097154,65889.0,65888.0,0.04467072]
[1727587351686,0.097154,65889.0,65888.0,0.04667072]
[1727587354020,0.097154,65889.0,65888.0,0.04467072]
[1727587354264,0.097154,65889.0,65888.0,0.04767072]
[1727587355213,0.097154,65889.0,65888.0,0.04567072]
[1727587355421,0.097154,65889.0,65888.0,0.04267072]
[1727587355627,0.097154,65889.0,65888.0,0.04567072]
[1727587355835,0.097154,65889.0,65888.0,0.007]
[1727587356039,0.097154,65889.0,65888.0,0.04967046]
[1727587356489,0.097154,65889.0,65888.0,0.04667046]
[1727587356886,0.097154,65889.0,65888.0,0.04867046]
[1727587357525,0.097154,65889.0,65888.0,0.04467046]
[1727587357642,0.097154,65889.0,65888.0,0.04767046]
[1727587357872,0.097154,65889.0,65888.0,0.04849746]
[1727587365443,0.001654,65889.0,65888.0,0.04849746]
[1727587367871,0.001654,65889.0,65888.0,0.04549746]
[1727587368078,0.001654,65889.0,65888.0,0.04349746]
[1727587368295,0.001654,65889.0,65888.0,0.04749746]
[1727587368515,0.001654,65889.0,65888.0,0.05049746]
[1727587371332,0.001654,65889.0,65888.0,0.20226946]
[1727587371515,0.001654,65889.0,65888.0,0.05049746]
[1727587371963,0.001654,65889.0,65888.0,0.20226946]
[1727587379202,0.001654,65889.0,65888.0,0.19526946]
[1727587379412,0.001654,65889.0,65888.0,0.20026946]
[1727587379620,0.001654,65889.0,65888.0,0.20426946]
[1727587381814,0.001654,65889.0,65888.0,0.19926946]
[1727587382229,0.024654,65889.0,65888.0,0.20526946]
[1727587382847,0.024654,65889.0,65888.0,0.19926946]
[1727587383261,0.024654,65889.0,65888.0,0.20426946]
[1727587384727,0.024654,65889.0,65888.0,0.30242801]
[1727587384946,0.024654,65889.0,65888.0,0.20426946]
[1727587385154,0.024654,65889.0,65888.0,0.19926946]
[1727587385728,0.024654,65889.0,65888.0,0.19526946]
[1727587386088,0.024654,65889.0,65888.0,0.20126946]
[1727587386706,0.024654,65889.0,65888.0,0.20726946]
[1727587402472,0.023654,65889.0,65888.0,0.20726946]
[1727587403412,0.022854,65889.0,65888.0,0.20126946]
[1727587403635,0.022654,65889.0,65888.0,0.20426946]
[1727587404099,0.022554,65889.0,65888.0,0.20126946]
[1727587404335,0.021954,65889.0,65888.0,0.19526946]
[1727587404564,0.021754,65889.0,65888.0,0.19526946]
[1727587404764,0.021654,65889.0,65888.0,0.19526946]
[1727587405002,0.021354,65889.0,65888.0,0.19826946]
[1727587405232,0.021154,65889.0,65888.0,0.19826946]
[1727587405481,0.020754,65889.0,65888.0,0.19526946]
[1727587405682,0.020654,65889.0,65888.0,0.19526946]
[1727587405843,0.020554,65889.0,65888.0,0.19526946]
[1727587406056,0.020354,65889.0,65888.0,0.19926946]
[1727587406232,0.020681,65889.0,65888.0,0.19926946]
[1727587406433,0.020581,65889.0,65888.0,0.19926946]
[1727587406641,0.020481,65889.0,65888.0,0.19526946]
[1727587406865,0.020481,65889.0,65888.0,0.20126946]
[1727587407459,0.020481,65889.0,65888.0,0.20726946]
[1727587407867,0.020481,65889.0,65888.0,0.20126946]
[1727587408095,0.020481,65889.0,65888.0,0.19526946]
[1727587408300,0.020481,65889.0,65888.0,0.19826946]
[1727587408759,0.020481,65889.0,65888.0,0.19526946]
[1727587408972,0.020481,65889.0,65888.0,0.19926946]
[1727587409495,0.020481,65889.0,65888.0,0.20426946]
[1727587411904,0.020481,65889.0,65888.0,0.20026946]
[1727587412119,0.020481,65889.0,65888.0,0.20626946]
[1727587412474,0.18058536,65889.0,65888.0,0.20626946]
[1727587412699,0.18058536,65889.0,65888.0,0.20126946]
[1727587413128,0.18058536,65889.0,65888.0,0.20726946]
[1727587413479,0.18058536,65889.0,65888.0,0.30588801]
[1727587413857,0.18066358,65889.0,65888.0,0.30588801]
[1727587414298,0.18066358,65889.0,65888.0,0.20726946]
[1727587415639,0.020481,65889.0,65888.0,0.20726946]
[1727587415862,0.18057619,65889.0,65888.0,0.20726946]
[1727587416521,0.18056894,65889.0,65888.0,0.20726946]
[1727587417843,0.020481,65889.0,65888.0,0.20726946]
[1727587418088,0.18056917,65889.0,65888.0,0.20726946]
[1727587423243,0.18054613,65889.0,65888.0,0.20726946]
[1727587423514,0.16089213,65889.0,65888.0,0.20726946]
[1727587423933,0.18389213,65889.0,65888.0,0.20726946]
[1727587428105,0.18063546,65889.0,65888.0,0.20726946]
[1727587428344,0.13783723,65889.0,65888.0,0.30588801]
[1727587428585,0.13783723,65889.0,65888.0,0.38300466]
[1727587428586,0.27183367,65889.0,65888.0,0.38300466]
[1727587428861,0.27183367,65889.0,65888.0,0.37996946]
[1727587429084,0.023827,65889.0,65888.0,0.37996946]
[1727587429317,0.09221293,65889.0,65888.0,0.37996946]
[1727587429567,0.09221293,65889.0,65888.0,0.49016152]
[1727587429821,0.09221293,65889.0,65888.0,0.48416152]
[1727587430344,0.09221293,65889.0,65888.0,0.47816152]
[1727587430588,0.09221293,65889.0,65888.0,0.48916152]
[1727587430864,0.09221293,65889.0,65888.0,0.50016152]
[1727587431087,0.09221293,65889.0,65888.0,0.48916152]
[1727587431550,0.09221293,65889.0,65888.0,0.49116152]
[1727587432029,0.09221293,65889.0,65888.0,0.50416152]
[1727587433418,0.023827,65889.0,65888.0,0.50416152]
[1727587433849,0.023827,65889.0,65888.0,0.49116152]
[1727587434282,0.09221293,65889.0,65888.0,0.50516152]
[1727587434493,0.023827,65889.0,65888.0,0.50516152]
[1727587434742,0.023827,65889.0,65888.0,0.49116152]
[1727587434953,0.023827,65889.0,65888.0,0.50416152]
[1727587435452,0.023827,65889.0,65888.0,0.49116152]
[1727587437187,0.023827,65889.0,65888.0,0.50516152]
[1727587437618,0.023827,65889.0,65888.0,0.49116152]
[1727587437845,0.023827,65889.0,65888.0,0.36796946]
[1727587438062,0.023827,65889.0,65888.0,0.38196946]
[1727587438296,0.023827,65889.0,65888.0,0.39496946]
[1727587438752,0.023827,65889.0,65888.0,0.38196946]
[1727587439424,0.023827,65889.0,65888.0,0.36796946]
[1727587439684,0.023827,65889.0,65888.0,0.38196946]
[1727587439908,0.023827,65889.0,65888.0,0.39596946]
[1727587440319,0.023827,65889.0,65888.0,0.38196946]
[1727587440782,0.023827,65889.0,65888.0,0.39596946]
[1727587441688,0.023827,65889.0,65888.0,0.22326946]
[1727587445677,0.18072964,65889.0,65888.0,0.22326946]
[1727587445941,0.18061357,65889.0,65888.0,0.22326946]
[1727587448565,0.27175276,65889.0,65888.0,0.22326946]
[1727587448803,0.18061357,65889.0,65888.0,0.22326946]
[1727587450858,0.18058748,65889.0,65888.0,0.22326946]
[1727587451066,0.29451738,65889.0,65888.0,0.22326946]
[1727587452195,0.44628738,65889.0,65888.0,0.07149746]
[1727587452416,0.54368738,65889.0,65888.0,0.07149746]
[1727587452630,0.42975748,65889.0,65888.0,0.07149746]
[1727587452849,0.54459259,65889.0,65888.0,0.028827]
[1727587455822,0.54437447,65889.0,65888.0,0.028827]
[1727587456502,0.42953936,65889.0,65888.0,0.028827]
[1727587459827,0.27776936,65889.0,65888.0,0.028827]
[1727587460487,0.27772816,65889.0,65888.0,0.028827]
[1727587460703,0.27772816,65889.0,65888.0,0.07223889]
[1727587460907,0.27772816,65889.0,65888.0,0.028827]
[1727587461117,0.27772816,65889.0,65888.0,0.07223889]
[1727587461328,0.27772816,65889.0,65888.0,0.028827]
[1727587462223,0.27772816,65889.0,65888.0,0.07223889]
[1727587462429,0.27772816,65889.0,65888.0,0.028827]
[1727587462619,0.27772816,65889.0,65888.0,0.07223889]
[1727587462875,0.27772816,65889.0,65888.0,0.028827]
[1727587463094,0.27772816,65889.0,65888.0,0.07223889]
[1727587463311,0.27772816,65889.0,65888.0,0.028827]
[1727587463534,0.27772816,65889.0,65888.0,0.07223889]
[1727587463767,0.27772816,65889.0,65888.0,0.028827]
[1727587464222,0.27772816,65889.0,65888.0,0.07223889]
[1727587464475,0.27772816,65889.0,65888.0,0.028827]
[1727587464732,0.27772816,65889.0,65888.0,0.07223889]
[1727587464975,0.27772816,65889.0,65888.0,0.028827]
[1727587464976,0.3363363,65889.0,65888.0,0.028827]
[1727587465206,0.47304474,65889.0,65888.0,0.028827]
[1727587465446,0.3363363,65889.0,65888.0,0.028827]
[1727587466735,0.54987141,65889.0,65888.0,0.028827]
[1727587468721,0.57168249,65889.0,65888.0,0.028827]
[1727587468965,0.67168249,65889.0,65888.0,0.028827]
[1727587469203,0.64987141,65889.0,65888.0,0.028827]
[1727587470352,0.64881946,65889.0,65888.0,0.028827]
[1727587470573,0.64881946,65889.0,65888.0,0.014827]
[1727587470846,0.64881946,65889.0,65888.0,0.021827]
[1727587471066,0.64881946,65889.0,65888.0,0.014827]
[1727587471296,0.64881946,65889.0,65888.0,0.000827]
[1727587471757,0.64881946,65889.0,65888.0,0.007827]
[1727587472438,0.64881946,65889.0,65888.0,0.000827]
[1727587473396,0.64881946,65889.0,65888.0,0.001827]
[1727587475338,0.64874434,65889.0,65888.0,0.001827]
[1727587476539,0.49337025,65889.0,65888.0,0.001827]
[1727587484326,0.64862956,65889.0,65888.0,0.001827]
[1727587484792,0.53379445,65889.0,65888.0,0.001827]
[1727587485422,0.43509445,65889.0,65888.0,0.001827]
[1727587485921,0.27983514,65889.0,65888.0,0.001827]
[1727587489411,0.43518285,65889.0,65888.0,0.001827]
[1727587491968,0.43516128,65889.0,65888.0,0.001827]
[1727587497012,0.43518088,65889.0,65888.0,0.001827]
[1727587498774,0.43518088,65889.0,65888.0,0.000827]
[1727587498993,0.43618088,65889.0,65888.0,0.000827]
[1727587499679,0.77276894,65889.0,65888.0,0.000827]
[1727587500122,0.77176894,65889.0,65888.0,6.596e-05]
[1727587500846,0.6214232,65889.0,65888.0,6.596e-05]
[1727587501069,0.7756531,65889.0,65888.0,6.596e-05]
[1727587501527,0.7756531,65889.0,65888.0,5.51e-06]
[1727587501745,0.7766531,65889.0,65888.0,5.51e-06]
[1727587502189,0.7756531,65889.0,65888.0,5.51e-06]
[1727587502634,0.7776531,65889.0,65888.0,0.00100551]
[1727587503089,0.80044971,65889.0,65888.0,0.00100551]
[1727587503328,0.64406165,65889.0,65888.0,0.00100551]
[1727587503554,0.64506165,65889.0,65888.0,0.00200551]
[1727587504707,0.64006165,65889.0,65888.0,0.00200551]
[1727587504940,0.41328747,65889.0,65888.0,0.00200551]
[1727587505173,0.42228747,65889.0,65888.0,0.00300551]
[1727587505891,0.42128747,65889.0,65888.0,0.00200551]
[1727587506331,0.42128747,65889.0,65888.0,0.00300551]
[1727587506332,0.44628747,65889.0,65888.0,0.00300551]
[1727587506560,0.58287477,65889.0,65888.0,0.00300551]
[1727587506787,0.58087477,65889.0,65888.0,0.00200551]
[1727587507227,0.58287477,65889.0,65888.0,0.00300551]
[1727587507492,0.44628747,65889.0,65888.0,0.00300551]
[1727587508216,0.4700811,65889.0,65888.0,0.00300551]
[1727587508447,0.4600811,65889.0,65888.0,0.00100551]
[1727587508686,0.4680811,65889.0,65888.0,0.00200551]
[1727587508914,0.4680811,65889.0,65888.0,0.00100551]
[1727587509172,0.4680811,65889.0,65888.0,0.00200551]
[1727587509656,0.46913494,65889.0,65888.0,0.00200551]
[1727587510153,0.46713494,65889.0,65888.0,0.00100551]
[1727587510605,0.46813494,65889.0,65888.0,0.00100551]
[1727587511065,0.46713494,65889.0,65888.0,0.00100551]
[1727587514491,0.46692946,65889.0,65888.0,0.00100551]
[1727587516076,0.45892946,65889.0,65888.0,5.51e-06]
[1727587516765,0.45992946,65889.0,65888.0,5.51e-06]
[1727587517200,0.45892946,65889.0,65888.0,5.51e-06]
[1727587519149,0.30462877,65889.0,65888.0,5.51e-06]
[1727587519441,0.46005504,65889.0,65888.0,5.51e-06]
[1727587523468,0.45905504,65889.0,65888.0,5.51e-06]
[1727587523705,0.46005504,65889.0,65888.0,5.51e-06]
[1727587523933,0.30462877,65889.0,65888.0,5.51e-06]
[1727587524180,0.46010547,65889.0,65888.0,5.51e-06]
[1727587529094,0.4601927,65889.0,65888.0,5.51e-06]
[1727587529767,0.43639907,65889.0,65888.0,5.51e-06]
[1727587533911,0.43649765,65889.0,65888.0,5.51e-06]
[1727587538980,0.43650692,65889.0,65888.0,5.51e-06]
[1727587540146,0.4364966,65889.0,65888.0,5.51e-06]
[1727587541537,0.68240303,65889.0,65888.0,5.51e-06]
[1727587542039,0.83614756,65889.0,65888.0,5.51e-06]
[1727587548081,0.68467958,65889.0,65888.0,5.51e-06]
[1727587548327,0.5308966,65889.0,65888.0,5.51e-06]
[1727587548551,0.37523514,65889.0,65888.0,5.51e-06]
[1727587548766,0.53073086,65889.0,65888.0,5.51e-06]
[1727587554620,0.43633086,65889.0,65888.0,5.51e-06]
[1727587556784,0.46012516,65889.0,65888.0,5.51e-06]
[1727587558081,0.43633086,65889.0,65888.0,5.51e-06]
[1727587561773,0.43649773,65889.0,65888.0,5.51e-06]
[1727587565764,0.46029201,65889.0,65888.0,5.51e-06]
[1727587566893,0.46030244,65889.0,65888.0,5.51e-06]
[1727587576756,0.46029917,65889.0,65888.0,5.51e-06]
[1727587581716,0.46031824,65889.0,65888.0,5.51e-06]
[1727587586697,0.46033428,65889.0,65888.0,5.51e-06]
[1727587596616,0.4603806,65889.0,65888.0,5.51e-06]
[1727587600387,0.46041076,65889.0,65888.0,5.51e-06]
[1727587601740,0.46039947,65889.0,65888.0,5.51e-06]
[1727587602251,0.61436276,65889.0,65888.0,5.51e-06]
[1727587604345,0.46039947,65889.0,65888.0,5.51e-06]
[1727587604574,0.45939947,65889.0,65888.0,5.51e-06]
[1727587605040,0.45939947,65889.0,65888.0,0.00400551]
[1727587606432,0.45950978,65889.0,65888.0,0.00400551]
[1727587607831,0.4357155,65889.0,65888.0,0.00400551]
[1727587612378,0.45950888,65889.0,65888.0,0.00400551]
[1727587612609,0.4357155,65889.0,65888.0,0.00400551]
[1727587614090,0.43586362,65889.0,65888.0,0.00400551]
[1727587615522,0.45965732,65889.0,65888.0,0.00400551]
[1727587616456,0.45969512,65889.0,65888.0,0.00400551]
[1727587616684,0.45969512,65889.0,65888.0,0.00200551]
[1727587617616,0.45969512,65889.0,65888.0,5.51e-06]
[1727587624323,0.45969512,65889.0,65888.0,0.00100551]
[1727587624761,0.45971477,65889.0,65888.0,0.00200551]
[1727587629678,0.45970037,65889.0,65888.0,0.00200551]
[1727587631985,0.45970037,65889.0,65888.0,0.00100551]
[1727587632237,0.45970037,65889.0,65888.0,5.51e-06]
[1727587634525,0.30362884,65889.0,65888.0,5.51e-06]
[1727587634745,0.45970079,65889.0,65888.0,5.51e-06]
[1727587636855,0.43590709,65889.0,65888.0,5.51e-06]
[1727587639596,0.43579655,65889.0,65888.0,5.51e-06]
[1727587640292,0.43579655,65889.0,65888.0,0.00100551]
[1727587640913,0.43579655,65889.0,65888.0,0.00200551]
[1727587644352,0.27983514,65889.0,65888.0,0.00200551]
[1727587644569,0.43589207,65889.0,65888.0,0.00200551]
[1727587644782,0.43589207,65889.0,65888.0,0.04541413]
[1727587645012,0.28412207,65889.0,65888.0,0.09760551]
[1727587645235,0.43589207,65889.0,65888.0,0.14101413]
[1727587645668,0.28412207,65889.0,65888.0,0.14101413]
[1727587646557,0.43589207,65889.0,65888.0,0.14101413]
[1727587647465,0.43589207,65889.0,65888.0,0.26171413]
[1727587649483,0.43590104,65889.0,65888.0,0.26171413]
[1727587654224,0.27983514,65889.0,65888.0,0.26171413]
[1727587654462,0.43589636,65889.0,65888.0,0.26171413]
[1727587659271,0.43589341,65889.0,65888.0,0.26171413]
[1727587660476,0.27983514,65889.0,65888.0,0.26171413]
[1727587660692,0.43585246,65889.0,65888.0,0.26171413]
[1727587661355,0.43585246,65889.0,65888.0,0.26071413]
[1727587663593,0.43585246,65889.0,65888.0,0.26171413]
[1727587664269,0.43582616,65889.0,65888.0,0.26171413]
[1727587667911,0.28405616,65889.0,65888.0,0.26171413]
[1727587669314,0.28405616,65889.0,65888.0,0.49188613]
[1727587669315,0.17981802,65889.0,65888.0,0.49188613]
[1727587670032,0.17981802,65889.0,65888.0,0.49088613]
[1727587670321,0.52068795,65889.0,65888.0,0.001]
[1727587670550,0.52068795,65889.0,65867.0,0.000827]
[1727587670551,0.15605614,65868.0,65867.0,0.000827]
[1727587670790,0.31204716,65868.0,65867.0,0.000827]
[1727587671502,0.32792762,65868.0,65867.0,0.000827]
[1727587672190,0.32892762,65868.0,65867.0,0.012827]
[1727587672412,0.35192762,65868.0,65867.0,0.012827]
[1727587673126,0.35192762,65868.0,65867.0,0.023827]
[1727587673390,0.44296236,65868.0,65867.0,0.023827]
[1727587673861,0.44360488,65868.0,65867.0,0.023827]
[1727587674312,0.1959366,65868.0,65867.0,0.023827]
[1727587675237,0.11236487,65868.0,65867.0,0.023827]
[1727587676175,0.0441186,65868.0,65867.0,0.023827]
[1727587676413,0.1959366,65868.0,65867.0,0.023827]
[1727587676850,0.26418287,65868.0,65867.0,0.023827]
[1727587677081,0.0441186,65868.0,65867.0,0.023827]
[1727587677815,0.03988046,65868.0,65867.0,0.175648]
[1727587678081,0.08773933,65868.0,65867.0,0.05495238]
[1727587678302,0.04225565,65868.0,65867.0,0.05495238]
[1727587678515,0.03988046,65868.0,65867.0,0.05495238]
[1727587679231,0.0441186,65868.0,65867.0,0.05495238]
[1727587682869,0.03988046,65868.0,65867.0,0.05495238]
[1727587683057,0.03988046,65868.0,65867.0,0.20677338]
[1727587683335,0.03988046,65868.0,65867.0,0.05495238]
[1727587693580,0.03988046,65868.0,65867.0,0.20677338]
[1727587693824,0.03988046,65868.0,65867.0,0.05495238]
[1727587698810,0.03988046,65868.0,65867.0,0.20677338]
[1727587699042,0.03988046,65868.0,65867.0,0.05495238]
[1727587709526,0.08533547,65868.0,65867.0,0.05495238]
[1727587712259,0.03988046,65868.0,65867.0,0.05495238]
[1727587713171,0.10806297,65868.0,65867.0,0.05495238]
[1727587714331,0.03988046,65868.0,65867.0,0.05495238]
[1727587714793,0.19664533,65868.0,65867.0,0.05495238]
[1727587715257,0.13079048,65868.0,65867.0,0.05495238]
[1727587715372,0.28755535,65868.0,65867.0,0.05495238]
[1727587716254,0.19664533,65868.0,65867.0,0.05495238]
[1727587716467,0.19664533,65868.0,65867.0,0.20677338]
[1727587716680,0.19664533,65868.0,65867.0,0.05495238]
[1727587719520,0.19664533,65868.0,65867.0,0.20677338]
[1727587720660,0.1969678,65868.0,65867.0,0.20677338]
[1727587721120,0.1969678,65868.0,65867.0,0.05495238]
[1727587721754,0.03988046,65868.0,65867.0,0.05495238]
[1727587721966,0.19696092,65868.0,65867.0,0.05495238]
[1727587723312,0.19696092,65868.0,65867.0,0.20677338]
[1727587723729,0.19696092,65868.0,65867.0,0.05495238]
[1727587724739,0.19696092,65868.0,65867.0,0.20677338]
[1727587725425,0.19696092,65868.0,65867.0,0.05495238]
[1727587729187,0.19696092,65868.0,65867.0,0.20677338]
[1727587741045,0.19710025,65868.0,65867.0,0.20677338]
[1727587745144,0.19705729,65868.0,65867.0,0.20677338]
[1727587751516,0.19705729,65868.0,65867.0,0.05495238]
[1727587752417,0.19705729,65868.0,65867.0,0.20677338]
[1727587755113,0.19709696,65868.0,65867.0,0.20677338]
[1727587773607,0.19709696,65868.0,65867.0,0.05495238]
[1727587774088,0.19709696,65868.0,65867.0,0.20677338]
[1727587774318,0.19709696,65868.0,65867.0,0.05495238]
[1727587774796,0.19717898,65868.0,65867.0,0.05495238]
[1727587779768,0.19720494,65868.0,65867.0,0.05495238]
[1727587780814,0.19721277,65868.0,65867.0,0.05495238]
[1727587783493,0.19721277,65868.0,65867.0,0.20677338]
[1727587783708,0.19721277,65868.0,65867.0,0.05495238]
[1727587784790,0.19726958,65868.0,65867.0,0.05495238]
[1727587787566,0.19726958,65868.0,65867.0,0.20677338]
[1727587794515,0.19722647,65868.0,65867.0,0.20677338]
[1727587807977,0.19731324,65868.0,65867.0,0.20677338]
[1727587816226,0.19731324,65868.0,65867.0,0.30057338]
[1727587817840,0.19731324,65868.0,65867.0,0.3005781]
[1727587820355,0.15392231,65868.0,65867.0,0.29844719]
[1727587820580,0.31135509,65868.0,65867.0,0.29844719]
[1727587822644,0.31150872,65868.0,65867.0,0.29844719]
[1727587827511,0.31152272,65868.0,65867.0,0.29844719]
[1727587828486,0.31152272,65868.0,65867.0,0.29927419]
[1727587830528,0.31152272,65868.0,65867.0,0.20547419]
[1727587832362,0.03988046,65868.0,65867.0,0.20547419]
[1727587832610,0.15393402,65868.0,65867.0,0.20547419]
[1727587833145,0.31155131,65868.0,65867.0,0.20547419]
[1727587833234,0.15393402,65868.0,65867.0,0.20547419]
[1727587833461,0.31155131,65868.0,65867.0,0.20547419]
[1727587833902,0.31155131,65868.0,65867.0,0.19066419]
[1727587836833,0.39252381,65868.0,65867.0,0.19066419]
[1727587837096,0.52125389,65868.0,65867.0,0.03884319]
[1727587837571,0.65811817,65868.0,65867.0,0.00771309]
[1727587838286,0.65809891,65868.0,65867.0,0.00771309]
[1727587838514,0.77764195,65868.0,65867.0,0.00771309]
[1727587838736,0.39389425,65867.0,65866.0,0.000827]
[1727587838958,0.64151154,65867.0,65866.0,0.000827]
[1727587839775,0.86217575,65867.0,65866.0,0.000827]
[1727587839998,0.71781534,65867.0,65866.0,0.000827]
[1727587840250,0.93847955,65867.0,65866.0,0.000827]
[1727587841570,0.93947955,65867.0,65866.0,0.011827]
[1727587842023,0.56119805,65867.0,65866.0,0.011827]
[1727587842252,0.71728332,65867.0,65866.0,0.011827]
[1727587842472,0.71628332,65867.0,65866.0,0.000827]
[1727587842689,0.9338027,65867.0,65866.0,0.000827]
[1727587842929,0.9348027,65867.0,65866.0,0.007827]
[1727587843387,0.9358027,65867.0,65866.0,0.014827]
[1727587843644,0.9348027,65867.0,65866.0,0.007827]
[1727587845476,0.85292299,65867.0,65866.0,0.007827]
[1727587845720,1.07144237,65867.0,65866.0,0.007827]
[1727587846442,0.85292299,65867.0,65866.0,0.007827]
[1727587846674,0.85192299,65867.0,65866.0,0.000827]
[1727587846902,0.85292299,65867.0,65866.0,0.006827]
[1727587847339,0.85192299,65867.0,65866.0,0.000827]
[1727587847588,0.85192299,65867.0,65866.0,0.003827]
[1727587848992,0.85192299,65867.0,65866.0,0.006827]
[1727587849399,0.71528332,65867.0,65866.0,0.006827]
[1727587851800,0.71508481,65867.0,65866.0,0.006827]
[1727587853625,0.73888583,65867.0,65866.0,0.006827]
[1727587853844,0.71508481,65867.0,65866.0,0.006827]
[1727587854432,0.5249459,65867.0,65866.0,0.006827]
[1727587856759,0.52525865,65867.0,65866.0,0.006827]
[1727587857193,0.52525609,65867.0,65866.0,0.006827]
[1727587860896,0.52527367,65867.0,65866.0,0.006827]
[1727587862046,0.54907419,65867.0,65866.0,0.006827]
[1727587862528,0.70546225,65867.0,65866.0,0.006827]
[1727587862744,0.78776225,65867.0,65866.0,0.006827]
[1727587863205,0.76396173,65867.0,65866.0,0.006827]
[1727587863642,0.76561573,65867.0,65866.0,0.006827]
[1727587866350,0.78941704,65867.0,65866.0,0.006827]
[1727587867986,0.92597111,65867.0,65866.0,0.006827]
[1727587868338,0.78941704,65867.0,65866.0,0.006827]
[1727587869657,0.63302898,65867.0,65866.0,0.006827]
[1727587869855,0.63247222,65867.0,65866.0,0.006827]
[1727587874813,0.63241251,65867.0,65866.0,0.006827]
[1727587877384,0.55011251,65867.0,65866.0,0.006827]
[1727587879467,0.76815509,65867.0,65866.0,0.006827]
[1727587879697,0.55019805,65867.0,65866.0,0.006827]
[1727587882398,0.70395274,65867.0,65866.0,0.006827]
[1727587883520,0.55019805,65867.0,65866.0,0.006827]
[1727587884203,0.55028408,65867.0,65866.0,0.006827]
[1727587884936,0.70667214,65867.0,65866.0,0.006827]
[1727587889499,0.70664928,65867.0,65866.0,0.006827]
[1727587891888,0.46026122,65867.0,65866.0,0.006827]
[1727587892153,0.61415839,65867.0,65866.0,0.006827]
[1727587894986,0.46026122,65867.0,65866.0,0.006827]
[1727587899647,0.50983317,65867.0,65866.0,0.006827]
[1727587899882,0.55556122,65867.0,65866.0,0.006827]
[1727587900121,0.71194928,65867.0,65866.0,0.006827]
[1727587903875,0.71129891,65867.0,65866.0,0.006827]
[1727587913734,0.71126978,65867.0,65866.0,0.006827]
[1727587914694,0.61596978,65867.0,65866.0,0.006827]
[1727587917029,0.73080489,65867.0,65866.0,0.006827]
[1727587918618,0.73077132,65867.0,65866.0,0.006827]
[1727587919271,0.73077137,65867.0,65866.0,0.006827]
[1727587922022,0.9477921,65867.0,65866.0,0.006827]
[1727587922290,0.73076032,65867.0,65866.0,0.006827]
[1727587929816,0.00923814,65854.0,65842.0,0.22690658]
[1727587930055,0.15610914,65845.0,65842.0,0.22690658]
[1727587930311,0.52596695,65845.0,65842.0,0.22690658]
[1727587930571,0.52596695,65845.0,65844.0,0.01626291]
[1727587930815,0.25373695,65844.0,65839.0,0.0087781]
[1727587931047,0.40875965,65844.0,65839.0,0.0087781]
[1727587931302,0.56244953,65844.0,65839.0,0.0087781]
[1727587931530,0.57832999,65844.0,65839.0,0.0087781]
[1727587931756,0.44764011,65844.0,65839.0,0.0087781]
[1727587931982,0.48394642,65844.0,65839.0,0.0087781]
[1727587936479,0.48589328,65844.0,65839.0,0.0087781]
[1727587936707,0.62218344,65844.0,65839.0,0.0087781]
[1727587937150,0.62218344,65844.0,65843.0,0.002827]
[1727587937641,0.48589328,65844.0,65843.0,0.002827]
[1727587938320,0.48589328,65844.0,65843.0,0.000827]
[1727587938775,0.48589328,65844.0,65843.0,0.002827]
[1727587945163,0.50970374,65844.0,65843.0,0.002827]
[1727587945623,0.48589328,65844.0,65843.0,0.002827]
[1727587946341,0.48750501,65844.0,65843.0,0.002827]
[1727587948116,0.60234012,65844.0,65843.0,0.002827]
[1727587948784,0.6261507,65844.0,65843.0,0.002827]
[1727587955517,0.62852589,65844.0,65843.0,0.002827]
[1727587960972,0.6284621,65844.0,65843.0,0.002827]
[1727587961432,0.62849215,65844.0,65843.0,0.002827]
[1727587965695,0.62858665,65844.0,65843.0,0.002827]
[1727587967591,0.76488666,65844.0,65843.0,0.002827]
[1727587968491,0.62858665,65844.0,65843.0,0.002827]
[1727587970214,0.60477607,65844.0,65843.0,0.002827]
[1727587970554,0.60494105,65844.0,65843.0,0.002827]
[1727587975474,0.44779002,65844.0,65843.0,0.002827]
[1727587975714,0.60541545,65844.0,65843.0,0.002827]
[1727587980468,0.60542987,65844.0,65843.0,0.002827]
[1727587980716,0.62924065,65844.0,65843.0,0.002827]
[1727587982780,0.47809923,65844.0,65843.0,0.095727]
[1727587982996,0.48532401,65844.0,65843.0,0.173427]
[1727587983449,0.48532401,65844.0,65843.0,0.20405918]
[1727587983450,0.33128845,65844.0,65843.0,0.20405918]
[1727587983890,0.33223222,65844.0,65843.0,0.173427]
[1727587984105,0.33223222,65844.0,65843.0,0.20405918]
[1727587984323,0.45523222,65844.0,65843.0,0.173427]
[1727587984765,0.45523222,65844.0,65843.0,0.171427]
[1727587984982,0.45523222,65844.0,65843.0,0.20205918]
[1727587985408,0.45523222,65844.0,65843.0,0.20505918]
[1727587985621,0.45523222,65844.0,65843.0,0.20605918]
[1727587985830,0.45523222,65844.0,65843.0,0.20505918]
[1727587986056,0.45523222,65844.0,65843.0,0.20605918]
[1727587986270,0.59199826,65844.0,65843.0,0.20605918]
[1727587986704,0.59199826,65844.0,65843.0,0.175427]
[1727587986938,0.45523222,65844.0,65843.0,0.20205918]
[1727587987134,0.59199631,65844.0,65843.0,0.20205918]
[1727587987433,0.59199631,65844.0,65843.0,0.20405918]
[1727587987648,0.59199631,65844.0,65843.0,0.20205918]
[1727587988306,0.59199631,65844.0,65843.0,0.20405918]
[1727587988742,0.59106873,65844.0,65843.0,0.20205918]
[1727587988953,0.59106873,65844.0,65843.0,0.20305918]
[1727587989594,0.59106873,65844.0,65843.0,0.20205918]
[1727587989810,0.61487743,65844.0,65843.0,0.20205918]
[1727587990247,0.61487743,65844.0,65843.0,0.20505918]
[1727587990461,0.61487743,65844.0,65843.0,0.174427]
[1727587990669,0.61487743,65844.0,65843.0,0.172427]
[1727587990889,0.61487743,65844.0,65843.0,0.171427]
[1727587991117,0.61487743,65844.0,65843.0,0.173427]
[1727587991551,0.61487743,65844.0,65843.0,0.171427]
[1727587991770,0.61487743,65844.0,65843.0,0.173427]
[1727587993321,0.47814554,65844.0,65843.0,0.173427]
[1727587993796,0.61474868,65844.0,65843.0,0.173427]
[1727587994037,0.61474768,65844.0,65843.0,0.002827]
[1727587994244,0.47805673,65844.0,65843.0,0.003827]
[1727587994940,0.45424803,65844.0,65843.0,0.004827]
[1727587996035,0.45389238,65844.0,65843.0,0.004827]
[1727588005981,0.72373833,65844.0,65843.0,0.004827]
[1727588007117,0.74754942,65844.0,65843.0,0.002827]
[1727588007340,0.74754942,65844.0,65843.0,0.000827]
[1727588008463,0.72373833,65844.0,65843.0,0.000827]
[1727588008673,0.87729276,65844.0,65843.0,0.000827]
[1727588009573,0.72344483,65844.0,65843.0,0.000827]
[1727588010306,0.9237561,65844.0,65843.0,0.000827]
[1727588011559,0.89994483,65844.0,65843.0,0.000827]
[1727588013019,0.81684483,65844.0,65843.0,0.000827]
[1727588013391,0.81656349,65844.0,65843.0,0.000827]